Cogmind - Beta 14 @@@ ROGUE MODE // 2024.08.12 @ 09:04:36 Player: 3.14 Result: Self-destructed Performance ------------- Evolutions (1) 500 Regions Visited (3) 600 Robots Destroyed (12) 60 Value Destroyed (191) 191 Prototype IDs (0) 0 Alien Tech Used (0) 0 Bonus (0) 0 TOTAL SCORE: 1351 Bonus ------- None Cogmind --------- Core Integrity 400/400 Matter 247/300 Energy 177/250 System Corruption 0% Temperature Cool (0) Movement Walking (120) Location -9/Materials Parts ------- > --- POWER (1) -------- Ion Engine > --- PROPULSION (3) --- Light Treads Aluminum Leg Aluminum Leg > --- UTILITY (3) ------ Heat Sink Medium Storage Unit > --- WEAPON (2) ------- Assault Rifle Assault Rifle > --- INVENTORY (10) --- Huge Storage Unit High-capacity Matter Pod (125) Assault Rifle Light Assault Rifle Light Assault Rifle Grenade Launcher Grenade Launcher Peak State ------------ > --- POWER ------------ Ion Engine > --- PROPULSION ------- Light Treads Light Treads > --- UTILITY ---------- Heat Sink Medium Storage Unit > --- WEAPON ----------- Assault Rifle Assault Rifle > --- INVENTORY -------- Ion Engine Aluminum Leg Aluminum Leg Huge Storage Unit High-capacity Matter Pod Medium Laser Medium Laser Assault Rifle Assault Rifle Grenade Launcher [Rating: 8] Favorites ----------- Power Ion Engine Engine Ion Engine Propulsion Light Treads Treads Light Treads Leg Aluminum Leg Utility Heat Sink Device Heat Sink Storage Medium Storage Unit Weapon Assault Rifle Energy Gun Medium Laser Ballistic Gun Assault Rifle Launcher Grenade Launcher Build | -11 -10 -10 -9 ------- Run | Yrd Mat Min Mat Slots Evolved 2 | . . . 2 Power . | . . . . Propulsion 1 | . . . 1 Utility 1 | . . . 1 Weapon . | . . . . Parts Attached 19 | 6 8 1 4 Power 2 | 1 . . 1 Engine 2 | 1 . . 1 Core . | . . . . Reactor . | . . . . Propulsion 4 | 2 . . 2 Treads 2 | 2 . . . Leg 2 | . . . 2 Wheel . | . . . . Hover . | . . . . Flight . | . . . . Utility 3 | 1 2 . . Device 1 | . 1 . . Storage 2 | 1 1 . . Processor . | . . . . Hackware . | . . . . Protection . | . . . . Artifact . | . . . . Weapon 10 | 2 6 1 1 Energy Gun 3 | 1 2 . . Energy Cannon . | . . . . Ballistic Gun 6 | 1 3 1 1 Ballistic Cannon . | . . . . Launcher 1 | . 1 . . Special Weapon . | . . . . Impact Weapon . | . . . . Slashing Weapon . | . . . . Piercing Weapon . | . . . . Special Melee Weapon . | . . . . Unidentified Prototypes . | . . . . Parts Lost 3 | . . 3 . Power 1 | . . 1 . Propulsion 1 | . . 1 . Utility . | . . . . Weapon 1 | . . 1 . Highest Loss Streak 3 | . . 3 . To Critical Strikes . | . . . . Average Slot Usage (%) 94 | . 95 97 81 Engine 12 | . 14 14 4 Treads 25 | . 28 26 11 Leg 2 | . . . 22 Device 10 | . 10 14 11 Storage 13 | . 14 14 11 Energy Gun 8 | . 11 . . Ballistic Gun 18 | . 16 28 22 Peak Build Rating 8 | 6 8 8 8 Average Rating 6 | 4 6 7 7 On Entrance 4 | . 6 8 5 Naked Turns . | . . . . Heaviest Build 20 | 14 20 20 20 Greatest Support 40 | 40 40 40 20 Greatest Overweight (x) . | . . . . Average Overweight (x) . | . . . . Largest Inventory Capacity 10 | 8 10 10 10 Average Capacity 8 | 7 8 10 10 Most Carried 10 | 4 10 10 8 Average Carried 6 | 2 7 9 7 Final Capacity 10 | 8 10 10 10 Final Carried 10 | 4 10 9 7 Class Distribution -------------------- 100% | Mutant Dominant Class ---------------- Mutant | -10/Materials Mutant | -10/Mines Mutant | -9/Materials Resources | -11 -10 -10 -9 ----------- Run | Yrd Mat Min Mat Matter Collected 579 | 266 30 283 . Remotely . | . . . . Salvage Created 296 | 77 136 83 . Parts 32 | 3 23 6 . Haulers Intercepted 1 | . 1 . . Recyclers Shooed . | . . . . Parts Field Recycled . | . . . . Retrieved Matter . | . . . . Parts Self-Destructed . | . . . . Prevented . | . . . . Kills | -11 -10 -10 -9 ------- Run | Yrd Mat Min Mat Combat Hostiles Destroyed 8 | . 6 2 . Guns 5 | . 3 2 . AOE 3 | . 3 . . Classes Destroyed 5 | 1 3 1 . Hauler 1 | . 1 . . Recycler 2 | 1 1 . . Watcher 1 | . 1 . . Swarmer 6 | . 6 . . Grunt 2 | . . 2 . Best Kill Streak 6 | 1 6 2 . Combat Bots Only 3 | . 3 2 . Max Kills in Single Turn 3 | 1 3 1 . Gunslinging . | . . . . Exploded 2 | . 2 . . Melee . | . . . . Uniques/NPCs Destroyed . | . . . . Combat | -11 -10 -10 -9 -------- Run | Yrd Mat Min Mat Hostile Shots Fired 40 | . 17 23 . Missed 16 | . 7 9 . Damage Taken 553 | . 83 470 . Core 23 | . 16 7 . Absorbed by Shields . | . . . . Core Remaining (%) 95 | 100 . 90 . Volleys Fired 25 | 2 11 12 . Largest 2 | 2 2 2 . Hottest 100 | 70 100 40 . Shots Fired 47 | 4 19 24 . Gun 44 | 4 16 24 . Cannon . | . . . . Launcher 3 | . 3 . . Special . | . . . . Kinetic 34 | 2 8 24 . Thermal 10 | 2 8 . . Explosive 3 | . 3 . . Electromagnetic . | . . . . Robot Hit Streak 10 | 2 10 4 . Robot Miss Streak 2 | 1 1 2 . Penetration Max . | . . . . Secondary Targets 1 | . . 1 . Max Gunslinging Chain 1 | . . 1 . Shots Hit Robots 27 | 2 12 13 . Core Hits 20 | 2 11 7 . Critical Kills . | . . . . Critical Parts Destroyed . | . . . . Critical Strikes 1 | . 1 . . Burn 1 | . 1 . . Melee Attacks . | . . . . Impact . | . . . . Slashing . | . . . . Piercing . | . . . . Sneak Attacks . | . . . . Combat Hostiles . | . . . . Follow-up Attacks . | . . . . Damage Inflicted 662 | 23 470 169 . Guns 348 | 23 156 169 . Cannons . | . . . . Explosions 314 | . 314 . . Melee . | . . . . Ramming . | . . . . Kinetic 247 | 10 68 169 . Thermal 280 | 13 267 . . Explosive 135 | . 135 . . Electromagnetic . | . . . . Impact . | . . . . Slashing . | . . . . Piercing . | . . . . Highest Corruption . | . . . . Average Corruption . | . . . . Corruption Purged . | . . . . Corruption Blocked . | . . . . Overload Shots . | . . . . Overflow Damage 50 | . 50 . . Projectiles . | . . . . Explosions 50 | . 50 . . Melee . | . . . . Knockbacks . | . . . . Impact . | . . . . Kinetic . | . . . . Secondary . | . . . . Self-Inflicted Damage . | . . . . Shots . | . . . . Rammed . | . . . . Targets Rammed . | . . . . Kicked . | . . . . Crushed . | . . . . Highest Temperature 18 | 18 18 . . Average Temperature 9 | 10 9 . . Received Heat Transfer 42 | . . 42 . Siege Activations . | . . . . Robots Corrupted . | . . . . Combat Hostiles . | . . . . Parts Fried . | . . . . Impact Corruptions . | . . . . Robots Melted . | . . . . Combat Hostiles . | . . . . Parts Melted 1 | . 1 . . Heat Transferred 520 | 37 483 . . Parts Sabotaged . | . . . . Parts Stolen . | . . . . Parts Stripped . | . . . . Power Chain Reactions . | . . . . Alert | -11 -10 -10 -9 ------- Run | Yrd Mat Min Mat Peak Influence 300 | 5 300 167 53 Initial 117 | . 3 117 53 Average 97 | 2 124 144 53 Maximum Alert Level 1 | . 1 . . Low Security (%) 92 | 100 87 100 100 Level 1 7 | . 12 . . Level 2 . | . . . . Level 3 . | . . . . Level 4 . | . . . . Level 5 . | . . . . High Security . | . . . . Max Security . | . . . . Squads Dispatched . | . . . . Investigation . | . . . . Extermination . | . . . . Reinforcement . | . . . . Assault . | . . . . Garrison . | . . . . Intercept . | . . . . Searches Triggered . | . . . . Construction Impeded . | . . . . Haulers Reinforced . | . . . . Active Scanning Responses . | . . . . Cargo Convoy Interrupts . | . . . . Stealth | -11 -10 -10 -9 --------- Run | Yrd Mat Min Mat Distress Signals 2 | . 2 . . Communications Jammed . | . . . . Distress Signals . | . . . . Times Spotted 18 | . 9 9 . Peak Tracking Total 7 | . 5 7 . Tactical Retreats 1 | . 1 . . Traps | -11 -10 -10 -9 ------- Run | Yrd Mat Min Mat Traps Triggered . | . . . . Indirectly . | . . . . Trap Hack Attempts . | . . . . Triggered . | . . . . Disarmed . | . . . . Reprogrammed . | . . . . Reused . | . . . . Traps Extracted . | . . . . Installed . | . . . . Triggered . | . . . . Machines | -11 -10 -10 -9 ---------- Run | Yrd Mat Min Mat Machines Disabled 2 | . 2 . . Max in Single Turn 2 | . 2 . . Machines Repaired . | . . . . Machines Dismantled . | . . . . Machines Sabotaged . | . . . . Overloaded Fab Kills . | . . . . Hacking | -11 -10 -10 -9 --------- Run | Yrd Mat Min Mat Machines Accessed 2 | . 1 . 1 Terminals 2 | . 1 . 1 Fabricators . | . . . . Repair Stations . | . . . . Recycling Units . | . . . . Scanalyzers . | . . . . Garrison Access . | . . . . Total Hacks 11 | . 7 . 4 Successful 4 | . 3 . 1 Failed 6 | . 3 . 3 Catastrophic . | . . . . Database Lockouts 1 | . 1 . . Manual 7 | . 5 . 2 Terminals 11 | . 7 . 4 Fabricators . | . . . . Repair Stations . | . . . . Recycling Units . | . . . . Scanalyzers . | . . . . Garrison Access . | . . . . Terminal Hacks 2 | . 2 . . Robot Analysis 1 | . 1 . . Hauler Manifests 1 | . 1 . . Fabricator Hacks . | . . . . Repair Station Hacks . | . . . . Recycling Unit Hacks . | . . . . Scanalyzer . | . . . . Garrison Access Hacks . | . . . . Unauthorized Hacks 2 | . 1 . 1 Terminals 2 | . 1 . 1 Skim 2 | . 1 . 1 Fabricators . | . . . . Repair Stations . | . . . . Recycling Units . | . . . . Scanalyzers . | . . . . Garrison Access . | . . . . Data Cores Recovered . | . . . . Used . | . . . . Hacking Detections 2 | . 1 . 1 Full Trace Events . | . . . . Feedback Events . | . . . . Feedback Blocked . | . . . . Robot Schematics Acquired . | . . . . Robots Built . | . . . . Authchips . | . . . . Time . | . . . . Total Robot Build Rating . | . . . . Part Schematics Acquired . | . . . . Parts Built . | . . . . Authchips . | . . . . Time . | . . . . Total Part Build Rating . | . . . . Parts Repaired . | . . . . Time . | . . . . Parts Recycled . | . . . . Recycled Matter . | . . . . Retrieved Matter . | . . . . Retrieved Components . | . . . . Parts Scanalyzed . | . . . . Part Schematics Acquired . | . . . . Parts Damaged . | . . . . Bothacking | -11 -10 -10 -9 ------------ Run | Yrd Mat Min Mat Used RIF Installer . | . . . . Robots Hacked . | . . . . Non-combat . | . . . . Combat . | . . . . Robot Hacks Applied . | . . . . Relay Couplers Released . | . . . . Fabnet Peak Effective % . | . . . . Robots Rewired . | . . . . Allies Hacked . | . . . . Hacks Repelled . | . . . . Allies | -11 -10 -10 -9 -------- Run | Yrd Mat Min Mat Total Allies . | . . . . Largest Group . | . . . . Highest-Rated Group . | . . . . Highest-Rated Ally . | . . . . Total Orders . | . . . . Ally Attacks . | . . . . Total Damage . | . . . . Kills . | . . . . Allies Corrupted . | . . . . Allies Melted . | . . . . Intel | -11 -10 -10 -9 ------- Run | Yrd Mat Min Mat Robot Analysis Total 1 | . 1 . . Derelict Logs Recovered . | . . . . Drone Launches . | . . . . Drone Recoveries . | . . . . Exploration | -11 -10 -10 -9 ------------- Run | Yrd Mat Min Mat Turns Passed 496 | 92 278 76 50 Spaces Moved 256 | 55 139 25 37 Core 13 | 13 . . . Treads 206 | 42 139 25 . Legs 37 | . . . 37 Wheels . | . . . . Hover . | . . . . Flight . | . . . . Fastest Speed 50 | 50 160 160 120 Average Speed 148 | 134 160 160 120 Slowest Speed 160 | 160 160 160 120 Overloaded Moves . | . . . . Propulsion Burnouts . | . . . . Robots Hopped . | . . . . Cave-ins Triggered . | . . . . Exploration Rate (%) 12 | 4 30 10 4 Regions Visited 3 Branch Regions 1 Pre-discovered Areas . | . . . . Known Exits Taken . | . . . . Unknown Exits Taken 3 | 1 1 1 . Scrap Searched . | . . . . Spaces Dug . | . . . . Terrain Destroyed 26 | . 26 . . Melee . | . . . . Projectile . | . . . . AOE 26 | . 26 . . Terrain Rammed . | . . . . Walls Destroyed . | . . . . Machines Disabled . | . . . . Actions | -11 -10 -10 -9 --------- Run | Yrd Mat Min Mat Total 318 | 66 173 37 42 Wait 5 | . 5 . . Move 253 | 54 138 24 37 Hop . | . . . . Pick Up 13 | 4 8 . 1 Fast Attach 7 | 6 1 . . Attach 4 | . . 1 3 Detach . | . . . . Swap 8 | . 7 . 1 Drop 3 | . 3 . . Fire 25 | 2 11 12 . Melee . | . . . . Ram . | . . . . Kick . | . . . . Crush . | . . . . Escape Stasis . | . . . . Rewire . | . . . . Trap . | . . . . Miscellaneous . | . . . . Route ------- -11/Scrapyard -10/Materials -10/Mines -9/Materials History --------- Turn | Location | Event 13 | -11/Scrapyard | Discovered new exit (range 15) 93 | -11/Scrapyard | Entered Materials 116 | -10/Materials | Central database locked down 308 | -10/Materials | Build established: Mutant 348 | -10/Materials | Discovered new exit (range 7) 371 | -10/Materials | Entered Mines 414 | -10/Mines | Discovered new exit (range 5) 430 | -10/Mines | Assembled infested the area 435 | -10/Mines | Assisted by a Guerilla fighting off Assembled 447 | -10/Mines | Entered Materials 447 | -9/Materials | Evolved 2 slots: Propulsion x1, Utility x1 472 | -9/Materials | Lost 3 parts (1p1n1w) 497 | -9/Materials | Self-destructed Last Messages --------------- 00441_ U-05 Engineer system corrupted by crushing effect. 00441_ Ion Engine destroyed. 00443_ The unstable cave ceiling collapses. 00443_ as-64197 sneak attacks. 00443_ U-05 Engineer system corrupted by crushing effect. 00443_ U-05 Engineer knocked back. 00443_ D-53 Grenadier destroyed. 00444_ U-05 Engineer system terminally corrupted. PARAMETERS=PROPULSION+1,UTILITY+1 LOCATION=UNKNOWN GOAL=ESCAPE 00469_ Acquired Grenade Launcher. 00478_ Connecting with Terminal... 00478_ Current location identified: Materials >>Trojan(Skim) Trojan loaded successfully. Testing... Terminal linked with 0 systems. Please expand to 4 more systems! 00497_ Connecting with Terminal... Map ----- +----------------------------------------------------+ | ????????????????????????????????????? | | ????????????????????????????????????? | | ????????????????????????????????????? | | ????????????????????????????????????? | | ????????????????????????????????????? | | ????????????????????????????????????? | | ????????????????????????????????????? | | ????????????????????????????????????? | | ????????????????????????????????????? | | ????????????????????????????????????? | | ????????????????????????????????????? | | ????????????????????????????????????? | | ????????????????????????????????????? | | ????????????????????????????????????? | | ????????????????????????????????????? | | ????????????????????????????????????? | | ???????????????????? ?????????????? | | ???????????????????? #????????????? | | ???????????????????? #????????????? | | ????????#+#########? #????????????? | | ????????# ## #????????????? | | ????????# ## #????????????? | | ????????# "" """ ## #????????????? | | ????????# "" """ ## #????????????? | | ????????# "T """ ## +????????????? | | ????????# ""@ ## #????????????? | | ????????# "" ## #????????????? | | ????????# ## ##???????????? | | ????????#######+### ########????? | | ???????????# +????? | | ???????????# #????? | | ???????????# #????? | | ???????????######## ###### #????? | | ????????????????#####+#####?????????? | | ????????????????# #?????????? | | ????????????????# """ #?????????? | | ????????????????# """ || #?????????? | | ????????????????# """ || #?????????? | | ????????????????# #?????????? | | ????????????????# #?????????? | | ????????????????# #?????????? | | ????????????????# "T" #?????????? | | ????????????????###########?????????? | | ????????????????????????????????????? | | ????????????????????????????????????? | | ????????????????????????????????????? | | ????????????????????????????????????? | | ????????????????????????????????????? | | ????????????????????????????????????? | | ????????????????????????????????????? | +----------------------------------------------------+ Best States ------------- Heat Dissipation 38 Energy Generation 10 Energy Capacity 250 Matter Stores 300 Matter Capacity 300 Sight Range 16 Terrain Scan Density 10 Evasion (%) 55 Recoil Reduction 2 Item Schematics ----------------- None Robot Schematics ------------------ None Fabricated ------------ Nothing Alien Tech Used ----------------- None Achievements -------------- None Challenges ------------ None Game ------ Seed DataBiocellMicrothruster Manual? 0 Play Time 00:03:24 Cumulative 902.0 hours Start 2024.08.12 @ 09:01:37 End 2024.08.12 @ 09:04:36 Sessions 1 Manual Loads 0 Difficulty Rogue Special Mode None Game No. 1437 Rogue 1437 Adventurer 0 Explorer 0 Win Type - Total 86 Types 52/1/14/14/4/0/0/1/0 Lore% 72 Gallery% 87 Achievement% 85 Wizard Run 0 Options --------- Layout 0 ASCII 1 Keyboard 0 Movement Numpad Keybinds 0 Fullscreen 2 Font 18/SmallcapsGlow Map View 76x50 Zoom Use 0% Tactical HUD 1 Map Filters NONE Filters NONE Steam 1 RUN: 5003bb52-79a9-4348-9bc6-306768a6349c